fUST/lending_fUST_20250527
["ID","MTS","AMOUNT","RATE_DAILY","PERIOD"]
[362527809,1748351471627,-1630.08,0.00024794,2]
[362527810,1748351471637,-1630.08,0.00024794,2]
[362527811,1748351471647,-1630.08,0.00024794,2]
[362527812,1748351471657,-1630.08,0.00024794,2]
[362527813,1748351471667,-1630.08,0.00024794,2]
[362527814,1748351471677,-1630.08,0.00024794,2]
[362527815,1748351471688,-1630.08,0.00024794,2]
[362527816,1748351471697,-1630.08,0.00024794,2]
[362527817,1748351471707,-1630.08,0.00024794,2]
[362527818,1748351471718,-1630.08,0.00024794,2]
[362527819,1748351471728,-1630.08,0.00024794,2]
[362527820,1748351471737,-1630.08,0.00024794,2]
[362527821,1748351471747,-1630.08,0.00024794,2]
[362527822,1748351471757,-1630.08,0.00024794,2]
[362527823,1748351471767,-1630.08,0.00024794,2]
[362527824,1748351471776,-1630.19353951,0.00024794,2]
[362527825,1748351471787,-333.6167873,0.00024795,2]
[362527826,1748351471796,-571.8642545,0.00024795,2]
[362527827,1748351471809,-571.8642545,0.00024795,2]
[362527828,1748351471818,-571.8642545,0.00024795,2]
[362527829,1748351471827,-5688.998,0.000248,15]
[362527830,1748351471837,-2399.15584751,0.000248,2]
[362527831,1748351471847,-2000.0,0.000248,2]
[362527832,1748351471856,-81107.273825,0.000248,2]
[362527833,1748351471866,-5000.0,0.00024809,2]
[362527834,1748351471876,-5000.0,0.00024809,2]
[362527835,1748351471886,-5000.0,0.00024809,2]
[362527836,1748351471895,-5000.0,0.00024809,2]
[362527837,1748351471905,-5000.0,0.00024809,2]
[362527838,1748351471915,-2886.94482947,0.00024819,2]
[362527839,1748351471924,-2891.4772032,0.000249,3]
[362527840,1748351471934,-101247.48560474,0.000249,2]
[362527841,1748351471943,-154504.55576495,0.000249,7]
[362527842,1748351471958,-42814.73919627,0.000249,7]
[362527843,1748351471969,-106335.23503878,0.000249,7]
[362527844,1748351471979,-2753.35,0.000249,7]
[362527845,1748351471989,-1500.0,0.000249,2]
[362527846,1748351471999,-1500.0,0.000249,2]
[362527847,1748351472009,-1500.0,0.000249,2]
[362527848,1748351472019,-1500.0,0.000249,2]
[362527849,1748351472029,-1500.0,0.000249,2]
[362527850,1748351472038,-1500.0,0.000249,2]
[362527851,1748351472047,-1500.0,0.000249,2]
[362527852,1748351472058,-1500.0,0.000249,2]
[362527853,1748351472068,-1800.07,0.000249,2]
[362527854,1748351472077,-1500.0,0.000249,2]
[362527855,1748351472087,-1500.0,0.000249,2]
[362527856,1748351472097,-191.19,0.000249,31]
[362527857,1748351472107,-191.19,0.000249,31]
[362527858,1748351472116,-191.19,0.000249,31]
[362527859,1748351472126,-191.19,0.000249,31]
[362527860,1748351472136,-191.19,0.000249,31]
[362527861,1748351472148,-191.19,0.000249,31]
[362527862,1748351472159,-191.19,0.000249,31]
[362527863,1748351472168,-191.19,0.000249,31]
[362527864,1748351472178,-191.19,0.000249,31]
[362527865,1748351472188,-191.19,0.000249,31]
[362527866,1748351472198,-191.19,0.000249,31]
[362527867,1748351472208,-191.19,0.000249,31]
[362527868,1748351472219,-191.19,0.000249,31]
[362527869,1748351472228,-191.19,0.000249,31]
[362527870,1748351472238,-191.19,0.000249,31]
[362527871,1748351472248,-191.19,0.000249,31]
[362527872,1748351472258,-565952.21986841,0.000249,2]
[362527873,1748351472328,-375.78760917,0.00019178,2]
[362527874,1748351472339,-563.36406235,0.00019178,2]
[362527875,1748351472349,-430.0,0.00019178,2]
[362527876,1748351472359,-151.0,0.00019178,2]
[362527877,1748351472369,-430.0,0.00019178,2]
[362527878,1748351472379,-435.18956624,0.00019178,2]
[362527879,1748351472389,-152.577471,0.00019452,2]
[362527880,1748351472399,-430.0,0.00019452,2]
[362527881,1748351472408,-111317.51053859,0.000249,2]
[362527882,1748351472418,-2933.07380438,0.000249,12]
[362527883,1748351472428,-524.92,0.00024931,2]
[362527884,1748351472439,-997.26,0.00024931,2]
[362527885,1748351472449,-2536.38,0.00024931,2]
[362527886,1748351472459,-437.51,0.00024931,2]
[362527887,1748351472469,-1436.42,0.00024931,2]
[362527888,1748351472478,-975.12,0.00024931,2]
[362527889,1748351472591,-631.14,0.00024931,2]
[362527890,1748351472601,-474.74,0.00024931,2]
[362527891,1748351472611,-1038.02,0.00024931,2]
[362527892,1748351472621,-2253.58,0.00024931,2]
[362527893,1748351472631,-1807.97,0.00024931,2]
[362527894,1748351472640,-624.22,0.00024931,2]
[362527895,1748351472650,-545.27,0.00024931,2]
[362527896,1748351472659,-489.01,0.00024931,2]
[362527897,1748351472669,-1251.66,0.00024931,2]
[362527898,1748351472678,-832.62,0.00024931,2]
[362527899,1748351472688,-574.93,0.00024931,2]
[362527900,1748351472698,-570.09,0.00024931,2]
[362527901,1748351472712,-924.77,0.00024931,2]
[362527902,1748351472723,-2886.94482947,0.00024953,2]
[362527903,1748351472732,-102950.38345861,0.00025,20]
[362527904,1748351472743,-45552.64649433,0.00025,30]
[362527908,1748351863198,5000.0,0.00016,2]
[362527910,1748351949749,-2977.1675972,0.0001605,2]
[362527911,1748351949785,-246.12284702,0.0001607,2]
[362527912,1748351981494,3780.77920664,0.0001616,2]
[362527913,1748352103579,5000.0,0.0001616,2]
[362527914,1748352104983,10000.0,0.00016043,2]
[362527915,1748352163122,4208.21071515,0.0001616,2]
[362527916,1748352214224,7554.5260877,0.0001607,2]
[362527918,1748352312129,428.76164389,0.0001616,2]
[362527920,1748352359310,311.7804932,0.00016061,2]
[362527921,1748352407172,14401.12851448,0.000161,2]
[362527922,1748352407203,10945.87148552,0.000161,2]
[362527939,1748352449119,-210.0037751,0.00016167,2]
[362527940,1748352449148,-136.60391135,0.0001617,2]
[362527943,1748352491472,5000.0,0.000161,2]
[362527944,1748352506878,5000.0,0.000161,2]
[362527948,1748352522273,4054.12851448,0.000161,2]
[362527949,1748352522574,385.92148001,0.00015,2]
[362527950,1748352523629,1798.70342125,0.00015,2]
[362527951,1748352547121,-142.73985001,0.000161,2]
[362527952,1748352547145,-61.45353167,0.0001617,2]
[362527953,1748352547168,-1023.833914,0.00016342,2]
[362527954,1748352547191,-1000.91816531,0.000165,2]
[362527955,1748352547212,-156.0,0.00016548,3]
[362527956,1748352547233,-1150.1199228,0.00016839,2]
[362527957,1748352547254,-530.58984535,0.00017,2]
[362527959,1748352626655,492.216829,0.00013699,2]
[362528037,1748352638683,-171.0,0.00016575,3]
[362528038,1748352638693,-94.70204352,0.00017,2]
[362528039,1748352638704,-16.48044749,0.00017204,2]
[362528040,1748352638735,-473.96474974,0.00017204,2]
[362528041,1748352638745,-57.92246519,0.00017303,2]
[362528042,1748352638763,-442.07753481,0.00017303,2]
[362528043,1748352638777,-500.0,0.00017303,2]
[362528044,1748352638787,-648.56939786,0.00017303,2]
[362528045,1748352638798,-648.56939786,0.00017303,2]
[362528046,1748352638808,-500.0,0.00017303,2]
[362528047,1748352638819,-648.56939786,0.00017303,2]
[362528048,1748352638830,-648.56939786,0.00017303,2]
[362528049,1748352638842,-358.60740152,0.00017303,2]
[362528050,1748352638852,-648.56939786,0.00017303,2]
[362528051,1748352638862,-500.0,0.00017303,2]
[362528052,1748352638872,-500.0,0.00017303,2]
[362528053,1748352638882,-648.56939786,0.00017303,2]
[362528054,1748352638893,-300.0,0.00017303,2]
[362528055,1748352638902,-648.56939786,0.00017303,2]
[362528056,1748352638912,-648.56939786,0.00017303,2]
[362528057,1748352638922,-648.56939786,0.00017303,2]
[362528058,1748352638932,-648.56939786,0.00017303,2]
[362528059,1748352638942,-648.56939786,0.00017303,2]
[362528060,1748352638952,-648.56939786,0.00017303,2]
[362528061,1748352638963,-648.56939786,0.00017303,2]
[362528062,1748352638973,-648.56939786,0.00017303,2]
[362528063,1748352638983,-648.56939786,0.00017303,2]
[362528064,1748352638993,-500.0,0.00017303,2]
[362528065,1748352639002,-232.24244946,0.00017303,2]
[362528066,1748352639035,-267.75755054,0.00017303,2]
[362528067,1748352639045,-500.0,0.00017303,2]
[362528068,1748352639055,-500.0,0.00017303,2]
[362528069,1748352639064,-500.0,0.00017303,2]
[362528070,1748352639075,-500.0,0.00017303,2]
[362528071,1748352639085,-500.0,0.00017303,2]
[362528072,1748352639095,-392.75968266,0.00017303,2]
[362528073,1748352639106,-500.0,0.00017303,2]
[362528074,1748352639116,-500.0,0.00017303,2]
[362528075,1748352639125,-189.38098936,0.00017303,2]
[362528076,1748352639135,-293.77557529,0.00017303,2]
[362528077,1748352639145,-500.0,0.00017303,2]
[362528078,1748352639155,-500.0,0.00017303,2]
[362528079,1748352639165,-187.43015627,0.00017303,2]
[362528080,1748352639175,-500.0,0.00017303,2]
[362528081,1748352639185,-500.0,0.00017303,2]
[362528082,1748352639194,-500.0,0.00017303,2]
[362528083,1748352639204,-500.0,0.00017303,2]
[362528084,1748352639214,-500.0,0.00017303,2]
[362528085,1748352639224,-500.0,0.00017303,2]
[362528086,1748352639233,-500.0,0.00017303,2]
[362528087,1748352639243,-500.0,0.00017303,2]
[362528088,1748352639252,-610.01336637,0.00017303,2]
[362528089,1748352639262,-500.0,0.00017303,2]
[362528090,1748352639275,-500.0,0.00017303,2]
[362528091,1748352639285,-500.0,0.00017303,2]
[362528092,1748352639294,-500.0,0.00017303,2]
[362528093,1748352639304,-500.0,0.00017303,2]
[362528094,1748352639314,-500.0,0.00017303,2]
[362528095,1748352639323,-500.0,0.00017303,2]
[362528096,1748352639333,-500.0,0.00017303,2]
[362528097,1748352639344,-500.0,0.00017303,2]
[362528098,1748352639354,-500.0,0.00017303,2]
[362528099,1748352639364,-500.0,0.00017303,2]
[362528100,1748352639374,-500.0,0.00017303,2]
[362528101,1748352639384,-500.0,0.00017303,2]
[362528102,1748352639394,-500.0,0.00017303,2]
[362528103,1748352639407,-500.0,0.00017303,2]
[362528104,1748352639417,-500.0,0.00017303,2]
[362528105,1748352639427,-500.0,0.00017303,2]
[362528106,1748352639436,-500.0,0.00017303,2]
[362528107,1748352639447,-500.0,0.00017303,2]
[362528108,1748352639456,-500.0,0.00017303,2]
[362528109,1748352639466,-500.0,0.00017303,2]
[362528110,1748352639476,-500.0,0.00017303,2]
[362528111,1748352639485,-500.0,0.00017303,2]
[362528112,1748352639496,-500.0,0.00017303,2]
[362528113,1748352639506,-500.0,0.00017303,2]
[362528114,1748352639518,-500.0,0.00017303,2]
[362528115,1748352639527,-500.0,0.00017303,2]
[362528116,1748352639537,-500.0,0.00017303,2]
[362528117,1748352639548,-500.0,0.00017303,2]
[362528118,1748352639557,-500.0,0.00017303,2]
[362528119,1748352639567,-500.0,0.00017303,2]
[362528120,1748352639579,-500.0,0.00017303,2]
[362528121,1748352639589,-500.0,0.00017303,2]
[362528122,1748352639598,-500.0,0.00017303,2]
[362528123,1748352639609,-500.0,0.00017303,2]
[362528124,1748352639619,-500.0,0.00017303,2]
[362528125,1748352639628,-500.0,0.00017303,2]
[362528126,1748352639639,-500.0,0.00017303,2]
[362528127,1748352639649,-500.0,0.00017303,2]
[362528128,1748352639659,-500.0,0.00017303,2]
[362528129,1748352639668,-500.0,0.00017303,2]
[362528130,1748352639678,-500.0,0.00017303,2]
[362528131,1748352639687,-500.0,0.00017303,2]
[362528132,1748352639697,-500.0,0.00017303,2]
[362528133,1748352639707,-500.0,0.00017303,2]
[362528134,1748352639718,-500.0,0.00017303,2]
[362528135,1748352639729,-500.0,0.00017303,2]
[362528136,1748352639738,-500.0,0.00017303,2]
[362528137,1748352639748,-500.0,0.00017303,2]
[362528138,1748352639759,-500.0,0.00017303,2]
[362528139,1748352639771,-500.0,0.00017303,2]
[362528140,1748352639781,-500.0,0.00017303,2]
[362528141,1748352639791,-500.0,0.00017303,2]
[362528142,1748352639800,-354.13459858,0.00017303,2]
[362528143,1748352639811,-500.0,0.00017303,2]
[362528144,1748352639820,-500.0,0.00017303,2]
[362528145,1748352639831,-500.0,0.00017303,2]
[362528146,1748352639841,-500.0,0.00017303,2]
[362528147,1748352639853,-500.0,0.00017303,2]
[362528148,1748352639863,-500.0,0.00017303,2]
[362528149,1748352639874,-500.0,0.00017303,2]
[362528150,1748352639885,-500.0,0.00017303,2]
[362528151,1748352639895,-500.0,0.00017303,2]
[362528152,1748352639907,-500.0,0.00017303,2]
[362528153,1748352639917,-457.23544527,0.00017303,2]
[362528154,1748352639927,-500.0,0.00017303,2]
[362528155,1748352639938,-500.0,0.00017303,2]
[362528157,1748352639949,-500.0,0.00017303,2]
[362528158,1748352639959,-500.0,0.00017303,2]
[362528159,1748352639970,-500.0,0.00017303,2]
[362528160,1748352639981,-500.0,0.00017303,2]
[362528161,1748352639991,-500.0,0.00017303,2]
[362528162,1748352640002,-500.0,0.00017303,2]
[362528163,1748352640012,-500.0,0.00017303,2]
[362528164,1748352640025,-500.0,0.00017303,2]
[362528165,1748352640036,-500.0,0.00017303,2]
[362528166,1748352640047,-500.0,0.00017303,2]
[362528167,1748352640057,-500.0,0.00017303,2]
[362528168,1748352640067,-500.0,0.00017303,2]
[362528169,1748352640076,-500.0,0.00017303,2]
[362528170,1748352640086,-500.0,0.00017303,2]
[362528171,1748352640097,-500.0,0.00017303,2]
[362528172,1748352640108,-500.0,0.00017303,2]
[362528173,1748352640119,-500.0,0.00017303,2]
[362528174,1748352640130,-500.0,0.00017303,2]
[362528175,1748352640141,-500.0,0.00017303,2]
[362528176,1748352640151,-500.0,0.00017303,2]
[362528177,1748352640161,-500.0,0.00017303,2]
[362528178,1748352640172,-500.0,0.00017303,2]
[362528179,1748352640182,-199.55973832,0.00017303,2]
[362528180,1748352640192,-500.0,0.00017303,2]
[362528181,1748352640201,-500.0,0.00017303,2]
[362528182,1748352640211,-500.0,0.00017303,2]
[362528183,1748352640221,-500.0,0.00017303,2]
[362528184,1748352640231,-500.0,0.00017303,2]
[362528185,1748352640241,-500.0,0.00017303,2]
[362528186,1748352640251,-500.0,0.00017303,2]
[362528187,1748352640261,-500.0,0.00017303,2]
[362528188,1748352640274,-500.0,0.00017303,2]
[362528189,1748352640284,-300.0,0.00017303,2]
[362528190,1748352640295,-300.0,0.00017303,2]
[362528191,1748352640305,-300.0,0.00017303,2]
[362528192,1748352640315,-1200.0,0.00017303,2]
[362528193,1748352640336,-300.0,0.00017303,2]
[362528194,1748352640349,-300.0,0.00017303,2]
[362528195,1748352640360,-50000.0,0.00017305,2]
[362528196,1748352640370,-151.0,0.00017305,2]
[362528197,1748352640381,-151.0,0.00017305,2]
[362528198,1748352640391,-151.0,0.00017332,2]
[362528199,1748352640401,-151.0,0.0001736,2]
[362528200,1748352640411,-151.0,0.00017387,2]
[362528201,1748352640422,-244.64135997,0.00017415,2]
[362528203,1748352640432,-24900.0,0.00017533,2]
[362528205,1748352640442,-205.57842921,0.000176,2]
[362528207,1748352640452,-490.44519723,0.00017673,2]
[362528209,1748352640462,-1086.0819134,0.0001777,2]
[362528211,1748352640473,-73067.50898617,0.00018,2]
[362528213,1748352640482,-609.07129601,0.00018,2]
[362528214,1748352640493,-490.44519723,0.00018141,2]
[362528215,1748352640503,-800.0,0.000185,2]
[362528216,1748352640513,-490.44519723,0.0001861,2]
[362528217,1748352640525,-1241.52536974,0.00018739,2]
[362528218,1748352640534,-420.0,0.00018893,2]
[362528219,1748352640544,-420.0,0.00018893,2]
[362528220,1748352640554,-420.0,0.00018893,2]
[362528221,1748352640564,-1509.06155184,0.000189,2]
[362528222,1748352640575,-717.44124593,0.000189,2]
[362528223,1748352640585,-1680.0,0.00018986,2]
[362528224,1748352640596,-490.44519723,0.00019078,2]
[362528226,1748352640605,-1509.06155171,0.00019107,2]
[362528227,1748352640615,-394.35,0.00019145,2]
[362528229,1748352640625,-153.10620228,0.00019173,2]
[362528231,1748352640635,-500.0,0.00019173,2]
[362528232,1748352640645,-501.05620535,0.00019173,2]
[362528234,1748352640655,-500.0,0.00019173,2]
[362528236,1748352640668,-500.0,0.00019173,2]
[362528237,1748352640677,-160.0,0.00019177,2]
[362528238,1748352640688,-430.0,0.00019178,2]
[362528240,1748352640698,-373.04480341,0.00019178,2]
[362528241,1748352640708,-430.0,0.00019178,2]
[362528242,1748352640718,-430.0,0.00019178,2]
[362528243,1748352640728,-430.0,0.00019178,2]
[362528244,1748352640739,-430.0,0.00019178,2]
[362528245,1748352640749,-506.1852819,0.00019178,2]
[362528247,1748352640759,-500.06509833,0.00019178,2]
[362528248,1748352640771,-430.0,0.00019178,2]
[362528249,1748352640781,-430.0,0.00019178,2]
[362528250,1748352640791,-185.3798107,0.00019178,2]
[362528251,1748352640802,-430.0,0.00019178,2]
[362528252,1748352640812,-430.0,0.00019178,2]
[362528253,1748352640822,-430.0,0.00019178,2]
[362528254,1748352640833,-430.0,0.00019178,2]
[362528255,1748352640843,-430.0,0.00019178,2]
[362528256,1748352640857,-430.0,0.00019178,2]
[362528257,1748352640867,-430.0,0.00019178,2]
[362528258,1748352640877,-430.0,0.00019178,2]
[362528259,1748352640888,-430.0,0.00019178,2]
[362528260,1748352640897,-1000.0,0.00019178,2]
[362528261,1748352640908,-430.0,0.00019178,2]
[362528262,1748352640919,-430.0,0.00019178,2]
[362528263,1748352640929,-386.19768795,0.00019178,2]
[362528264,1748352640944,-430.0,0.00019178,2]
[362528265,1748352640954,-430.0,0.00019178,2]
[362528266,1748352640965,-430.0,0.00019178,2]
[362528267,1748352640976,-430.0,0.00019178,2]
[362528268,1748352640986,-430.0,0.00019178,2]
[362528269,1748352640996,-430.0,0.00019178,2]
[362528270,1748352641007,-430.0,0.00019178,2]
[362528271,1748352641019,-430.0,0.00019178,2]
[362528272,1748352641030,-430.0,0.00019178,2]
[362528273,1748352641040,-430.0,0.00019178,2]
[362528274,1748352641050,-430.0,0.00019178,2]
[362528275,1748352641061,-430.0,0.00019178,2]
[362528276,1748352641071,-430.0,0.00019178,2]
[362528277,1748352641084,-430.0,0.00019178,2]
[362528278,1748352641095,-430.0,0.00019178,2]
[362528279,1748352641107,-430.0,0.00019178,2]
[362528280,1748352641117,-430.0,0.00019178,2]
[362528281,1748352641130,-430.0,0.00019178,2]
[362528282,1748352641140,-430.0,0.00019178,2]
[362528283,1748352641150,-430.0,0.00019178,2]
[362528284,1748352641160,-1000.0,0.00019178,2]
[362528285,1748352641171,-430.0,0.00019178,2]
[362528286,1748352641182,-455.89486169,0.00019178,2]
[362528287,1748352641193,-430.0,0.00019178,2]
[362528288,1748352641203,-430.0,0.00019178,2]
[362528289,1748352641213,-430.0,0.00019178,2]
[362528290,1748352641223,-430.0,0.00019178,2]
[362528291,1748352641233,-430.0,0.00019178,2]
[362528292,1748352641243,-251.50499014,0.00019178,2]
[362528293,1748352641254,-430.0,0.00019178,2]
[362528294,1748352641264,-430.0,0.00019178,2]
[362528295,1748352641278,-430.0,0.00019178,2]
[362528296,1748352641288,-430.0,0.00019178,2]
[362528297,1748352641298,-430.0,0.00019178,2]
[362528298,1748352641308,-430.0,0.00019178,2]
[362528299,1748352641318,-430.0,0.00019178,2]
[362528300,1748352641328,-430.0,0.00019178,2]
[362528301,1748352641339,-430.0,0.00019178,2]
[362528302,1748352641349,-430.0,0.00019178,2]
[362528303,1748352641359,-430.0,0.00019178,2]
[362528304,1748352641369,-430.0,0.00019178,2]
[362528305,1748352641380,-430.0,0.00019178,2]
[362528306,1748352641399,-430.0,0.00019178,2]
[362528307,1748352641410,-370.60584873,0.00019178,2]
[362528308,1748352641420,-539.2916397,0.00019178,2]
[362528309,1748352641430,-379.14352756,0.00019178,2]
[362528310,1748352641439,-430.0,0.00019178,2]
[362528311,1748352641449,-430.0,0.00019178,2]
[362528312,1748352641460,-430.81085665,0.00019178,2]
[362528313,1748352641470,-432.97265669,0.00019178,2]
[362528314,1748352641480,-353.7244745,0.00019178,2]
[362528315,1748352641490,-430.0,0.00019178,2]
[362528316,1748352641500,-430.0,0.00019178,2]
[362528317,1748352641510,-430.0,0.00019178,2]
[362528318,1748352641519,-315.80382896,0.00019178,2]
[362528319,1748352641530,-430.0,0.00019178,2]
[362528320,1748352641540,-430.0,0.00019178,2]
[362528321,1748352641550,-430.0,0.00019178,2]
[362528322,1748352641560,-430.0,0.00019178,2]
[362528323,1748352641569,-235.89594403,0.00019178,2]
[362528324,1748352641581,-430.0,0.00019178,2]
[362528325,1748352641592,-430.0,0.00019178,2]
[362528326,1748352641601,-430.0,0.00019178,2]
[362528327,1748352641611,-430.0,0.00019178,2]
[362528328,1748352641622,-430.0,0.00019178,2]
[362528329,1748352641632,-430.0,0.00019178,2]
[362528330,1748352641642,-370.0,0.00019178,2]
[362528331,1748352641652,-430.0,0.00019178,2]
[362528332,1748352641663,-449.45727192,0.00019178,2]
[362528333,1748352641673,-430.0,0.00019178,2]
[362528334,1748352641683,-430.0,0.00019178,2]
[362528335,1748352641694,-430.0,0.00019178,2]
[362528336,1748352641704,-430.0,0.00019178,2]
[362528337,1748352641714,-215.74976554,0.00019178,2]
[362528338,1748352641724,-536.07569883,0.00019178,2]
[362528339,1748352641733,-430.0,0.00019178,2]
[362528340,1748352641744,-430.0,0.00019178,2]
[362528341,1748352641754,-430.0,0.00019178,2]
[362528342,1748352641764,-430.0,0.00019178,2]
[362528343,1748352641776,-200.0,0.00019178,2]
[362528344,1748352641786,-430.0,0.00019178,2]
[362528345,1748352641796,-310.52079691,0.00019178,2]
[362528346,1748352641806,-381.14827141,0.00019178,2]
[362528347,1748352641817,-430.0,0.00019178,2]
[362528348,1748352641827,-430.0,0.00019178,2]
[362528349,1748352641837,-430.0,0.00019178,2]
[362528350,1748352641847,-383.92029781,0.00019178,2]
[362528351,1748352641857,-563.36539167,0.00019178,2]
[362528352,1748352641867,-151.79554691,0.00019178,2]
[362528353,1748352641877,-370.63307006,0.00019178,2]
[362528354,1748352641888,-430.0,0.00019178,2]
[362528355,1748352641898,-430.0,0.00019178,2]
[362528356,1748352641908,-430.0,0.00019178,2]
[362528357,1748352641918,-430.0,0.00019178,2]
[362528358,1748352641928,-179.52483661,0.00019178,2]
[362528359,1748352641940,-430.0,0.00019178,2]
[362528360,1748352641950,-430.0,0.00019178,2]
[362528361,1748352641960,-430.0,0.00019178,2]
[362528362,1748352641971,-430.0,0.00019178,2]
[362528363,1748352641981,-430.0,0.00019178,2]
[362528364,1748352641991,-430.0,0.00019178,2]
[362528365,1748352642001,-173.18461011,0.00019178,2]
[362528366,1748352642186,-430.0,0.00019178,2]
[362528367,1748352642197,-370.0,0.00019178,2]
[362528368,1748352642208,-430.0,0.00019178,2]
[362528369,1748352642217,-430.0,0.00019178,2]
[362528370,1748352642227,-430.0,0.00019178,2]
[362528371,1748352642237,-430.0,0.00019178,2]
[362528372,1748352642248,-430.0,0.00019178,2]
[362528373,1748352642258,-370.0,0.00019178,2]
[362528374,1748352642270,-430.0,0.00019178,2]
[362528375,1748352642279,-430.0,0.00019178,2]
[362528376,1748352642289,-370.11610126,0.00019178,2]
[362528377,1748352642299,-430.0,0.00019178,2]
[362528378,1748352642310,-314.58838485,0.00019178,2]
[362528379,1748352642320,-430.0,0.00019178,2]
[362528380,1748352642331,-158.4891907,0.00019178,2]
[362528381,1748352642340,-430.0,0.00019178,2]
[362528382,1748352642351,-430.0,0.00019178,2]
[362528383,1748352642360,-430.0,0.00019178,2]
[362528384,1748352642371,-430.0,0.00019178,2]
[362528385,1748352642381,-430.0,0.00019178,2]
[362528386,1748352642391,-430.0,0.00019178,2]
[362528387,1748352642401,-430.0,0.00019178,2]
[362528388,1748352642410,-430.0,0.00019178,2]
[362528389,1748352642421,-430.0,0.00019178,2]
[362528390,1748352642431,-430.0,0.00019178,2]
[362528391,1748352642441,-430.0,0.00019178,2]
[362528392,1748352642452,-430.0,0.00019178,2]
[362528393,1748352642461,-430.0,0.00019178,2]
[362528394,1748352642472,-370.0,0.00019178,2]
[362528395,1748352642483,-430.0,0.00019178,2]
[362528396,1748352642493,-430.0,0.00019178,2]
[362528397,1748352642503,-430.0,0.00019178,2]
[362528398,1748352642513,-430.0,0.00019178,2]
[362528399,1748352642525,-430.0,0.00019178,2]
[362528400,1748352642535,-430.0,0.00019178,2]
[362528401,1748352642544,-322.83732617,0.00019178,2]
[362528402,1748352642554,-430.0,0.00019178,2]
[362528403,1748352642563,-430.0,0.00019178,2]
[362528404,1748352642573,-430.0,0.00019178,2]
[362528405,1748352642586,-554.16640701,0.00019178,2]
[362528406,1748352642596,-169.99216408,0.00019178,2]
[362528407,1748352642606,-430.0,0.00019178,2]
[362528408,1748352642616,-430.0,0.00019178,2]
[362528409,1748352642626,-430.0,0.00019178,2]
[362528410,1748352642637,-430.0,0.00019178,2]
[362528411,1748352642648,-430.0,0.00019178,2]
[362528412,1748352642658,-412.81341696,0.00019178,2]
[362528413,1748352642669,-430.0,0.00019178,2]
[362528414,1748352642680,-175.61851743,0.00019178,2]
[362528415,1748352642690,-430.0,0.00019178,2]
[362528416,1748352642701,-430.0,0.00019178,2]
[362528417,1748352642711,-430.0,0.00019178,2]
[362528418,1748352642722,-430.0,0.00019178,2]
[362528419,1748352642732,-430.0,0.00019178,2]
[362528420,1748352642744,-430.0,0.00019178,2]
[362528421,1748352642754,-430.0,0.00019178,2]
[362528422,1748352642764,-430.0,0.00019178,2]
[362528423,1748352642779,-406.82285507,0.00019178,2]
[362528424,1748352642790,-430.0,0.00019178,2]
[362528425,1748352642800,-500.0,0.00019178,2]
[362528426,1748352642811,-430.0,0.00019178,2]
[362528427,1748352642823,-430.0,0.00019178,2]